bitfinex-derivatives/quotes_SOLF0:USTF0_20250716
["timestamp","ask_amount","ask_price","bid_price","bid_amount"]
[1752705314554,3.31,174.78,174.75,3.36]
[1752705314760,3.31,174.77,174.76,6.5962698]
[1752705315349,5.7182,174.79,174.76,6.5962698]
[1752705315657,3.31,174.78,174.77,3.36]
[1752705316055,3.31,174.83,174.77,3.36]
[1752705316354,3.31,174.83,174.82,6.5962698]
[1752705317853,9.0267,174.83,174.82,6.5962698]
[1752705318172,3.31,174.83,174.78,3.36]
[1752705318460,3.31,174.83,174.79,3.2362698]
[1752705319152,3.31,174.85,174.79,3.2362698]
[1752705319352,12.74102976,174.85,174.79,3.2362698]
[1752705319554,3.31,174.8,174.79,3.2362698]
[1752705320163,9.0277,174.8,174.79,3.2362698]
[1752705320660,3.31,174.8,174.79,6.5962698]
[1752705321362,3.31,174.81,174.8,3.36]
[1752705322258,3.31,174.81,174.79,3.2362698]
[1752705322458,9.0273,174.81,174.79,6.5962698]
[1752705322649,3.31,174.8,174.79,6.5962698]
[1752705323655,3.31,174.81,174.8,3.36]
[1752705323854,3.31,174.86,174.8,3.36]
[1752705324062,3.31,174.86,174.81,6.5962698]
[1752705324262,5.7169,174.83,174.81,6.5962698]
[1752705324463,3.31,174.82,174.81,6.5962698]
[1752705324664,3.31,174.86,174.81,3.2362698]
[1752705324865,12.74102976,174.87,174.85,3.36]
[1752705324866,3.31,174.87,174.85,3.36]
[1752705325163,3.31,174.87,174.86,3.2362698]
[1752705325366,3.31,174.87,174.86,6.5962698]
[1752705326266,9.0254,174.87,174.86,6.5962698]
[1752705328662,3.31,174.87,174.86,6.5962698]
[1752705328868,3.31,174.9,174.86,3.2362698]
[1752705329065,3.31,174.9,174.89,3.2362698]
[1752705330373,9.0244,174.9,174.89,3.2362698]
[1752705331275,12.74102976,174.93,174.89,6.5962698]
[1752705331470,3.31,174.92,174.91,3.2362698]
[1752705331664,3.31,174.92,174.91,0.67780295]
[1752705332175,9.0239,174.92,174.91,0.67780295]
[1752705332865,3.31,174.92,174.8,3.36]
[1752705333066,3.31,174.92,174.86,3.2362698]
[1752705333761,3.39,174.91,174.86,3.2362698]
[1752705333973,5.7153,174.88,174.86,3.2362698]
[1752705334169,3.39,174.87,174.86,3.2362698]
[1752705334963,3.39,174.87,174.86,6.3962698]
[1752705335272,3.39,174.9,174.87,3.16]
[1752705335472,3.39,174.9,174.89,6.3962698]
[1752705336374,3.39,174.9,174.89,3.2362698]
[1752705336573,9.1044,174.9,174.89,3.2362698]
[1752705337170,12.74102976,174.93,174.89,3.2362698]
[1752705337171,3.39,174.92,174.9,3.16]
[1752705337370,31.8525744,175.09,174.89,3.2362698]
[1752705337371,3.39,175.0,174.92,3.16]
[1752705337566,3.39,175.06,174.99,6.3962698]
[1752705337766,3.39,175.06,175.0,3.2362698]
[1752705338381,5.7104,175.03,175.0,3.2362698]
[1752705338672,3.39,175.01,175.0,3.2362698]
[1752705339184,3.39,175.09,175.0,6.3962698]
[1752705339475,3.39,175.09,175.02,3.2362698]
[1752705340274,3.39,175.1,175.02,3.2362698]
[1752705340477,3.39,175.08,175.02,3.2362698]
[1752705340678,5.7101,175.03,175.02,3.2362698]
[1752705340877,9.1001,175.03,175.02,3.2362698]
[1752705341173,3.39,175.03,174.99,3.16]
[1752705341371,3.39,175.03,175.01,3.2362698]
[1752705341679,3.39,175.02,175.01,3.2362698]
[1752705342575,3.39,175.02,175.01,6.3962698]
[1752705343374,5.71,175.04,175.01,6.3962698]
[1752705343575,3.39,175.03,175.01,3.16]
[1752705343776,3.39,175.03,175.02,6.3962698]
[1752705344168,3.39,175.1,175.02,6.3962698]
[1752705344567,3.39,175.1,175.02,3.2362698]
[1752705344766,5.7101,175.03,175.02,3.2362698]
[1752705344972,3.39,175.02,175.0,3.2362698]
[1752705345169,3.2362698,175.09,175.0,3.2362698]
[1752705345474,3.39,175.04,175.02,6.3962698]
[1752705345672,3.39,175.04,175.03,3.16]
[1752705345867,5.7098,175.04,175.02,3.2362698]
[1752705346077,3.39,175.03,175.02,6.3962698]
[1752705346880,3.39,175.05,175.03,3.16]
[1752705347079,3.39,175.05,175.04,3.2362698]
[1752705347676,9.0995,175.05,175.04,3.2362698]
[1752705348568,3.39,175.05,175.04,3.2362698]
[1752705349468,3.39,175.05,175.04,6.3962698]
[1752705349684,9.0995,175.05,175.04,3.2362698]
[1752705351372,5.71,175.04,175.02,3.2362698]
[1752705351572,3.39,175.03,175.02,3.2362698]
[1752705352079,3.39,175.03,175.0,3.2362698]
[1752705352480,5.7107,175.02,175.0,3.2362698]
[1752705352679,3.39,175.01,175.0,3.2362698]
[1752705353277,3.39,175.01,174.98,3.2362698]
[1752705353478,3.39,175.01,174.96,3.2362698]
[1752705353681,3.39,175.01,174.98,3.2362698]
[1752705353879,3.39,174.99,174.98,6.3962698]
[1752705356475,3.39,174.99,174.98,3.2362698]
[1752705356886,3.39,174.99,174.96,3.16]
[1752705356887,3.39,174.99,174.96,3.2362698]
[1752705357485,5.712,174.98,174.96,6.3962698]
[1752705357684,3.39,174.97,174.96,6.3962698]
[1752705358480,3.39,174.98,174.97,3.16]
[1752705358686,3.39,175.01,174.97,3.16]
[1752705358882,3.39,175.06,174.99,3.2362698]
[1752705359086,3.39,175.06,175.01,6.3962698]
[1752705359686,3.39,175.03,175.01,6.3962698]
[1752705359990,3.39,175.02,175.01,6.3962698]
[1752705360484,3.39,175.02,174.99,6.3962698]
[1752705360688,3.39,175.02,174.99,3.2362698]
[1752705360886,3.39,175.02,174.97,6.3962698]
[1752705361389,3.39,175.0,174.97,6.3962698]
[1752705361688,3.39,175.0,174.95,3.2362698]
[1752705361988,3.39,175.0,174.95,6.3962698]
[1752705362491,3.39,174.97,174.95,6.3962698]
[1752705362880,3.39,174.97,174.96,3.16]
[1752705363081,3.32,175.04,174.96,3.16]
[1752705363280,3.32,175.04,174.97,3.2362698]
[1752705363480,5.7109,175.01,174.97,3.2362698]
[1752705363676,3.32,174.99,174.98,3.1]
[1752705364282,5.7109,175.01,174.98,3.1]
[1752705364578,3.32,175.06,175.0,3.1]
[1752705364982,3.32,175.06,174.99,3.2362698]
[1752705365489,3.32,175.01,175.0,3.1]
[1752705365689,3.32,175.01,174.99,3.2362698]
[1752705365888,3.32,175.01,174.99,6.3362698]
[1752705366391,3.32,175.01,175.0,6.3362698]
[1752705366893,5.7104,175.03,175.0,6.3362698]
[1752705367286,3.32,175.02,175.01,3.1]
[1752705367587,3.32,175.02,175.01,6.3362698]
[1752705367783,5.71,175.04,175.01,6.3362698]
[1752705367991,3.32,175.03,175.02,3.1]
[1752705368181,3.32,175.04,175.02,3.1]
[1752705368386,3.32,175.04,175.03,6.3362698]
[1752705369392,9.0298,175.04,175.03,3.2362698]
[1752705369692,3.32,175.04,175.03,3.2362698]
[1752705370992,3.2362698,175.12,175.03,3.2362698]
[1752705371194,3.32,175.05,175.04,3.1]
[1752705371687,3.32,175.05,175.04,6.3362698]
[1752705373191,5.7086,175.08,175.04,12.0460698]
[1752705373395,3.32,175.07,175.06,6.3362698]
[1752705373987,3.32,175.12,174.96,240.2362698]
[1752705374292,3.32,175.12,175.03,3.2362698]
[1752705374293,3.32,175.11,175.03,3.2362698]
[1752705374593,3.2362698,175.12,175.05,3.2362698]
[1752705374594,5.7087,175.08,175.05,3.2362698]
[1752705374988,3.32,175.06,175.05,3.2362698]
[1752705375295,3.32,175.06,175.05,6.3362698]
[1752705375497,3.32,175.06,175.05,12.0457698]
[1752705376589,3.32,175.08,175.06,8.8091]
[1752705376789,3.32,175.08,175.07,3.2362698]
[1752705378091,9.0285,175.08,175.07,3.2362698]
[1752705379091,3.32,175.06,175.03,5.71]
[1752705379397,3.32,175.06,174.98,3.1]
[1752705379593,3.32,175.06,175.03,3.2362698]
[1752705379787,3.32,175.04,175.03,3.2362698]
[1752705380394,3.32,175.04,175.01,3.1]
[1752705380701,3.32,175.04,175.02,3.2362698]
[1752705380999,3.32,175.02,175.0,3.2362698]
[1752705381884,3.32,175.03,175.0,3.2362698]
[1752705382093,3.32,175.02,175.0,6.3362698]
[1752705382896,3.32,175.02,175.01,3.1]
[1752705383900,5.7099,175.04,175.0,3.2362698]
[1752705384092,3.32,175.01,175.0,6.3362698]
[1752705384696,3.32,175.01,175.0,12.0473698]
[1752705385003,3.32,175.01,175.0,6.3362698]
[1752705387804,3.32,175.01,175.0,12.0473698]
[1752705392010,12.74102976,175.06,175.03,8.8099]
[1752705392212,3.32,175.05,175.04,3.2362698]
[1752705394314,3.32,175.05,175.04,8.9460698]
[1752705394811,3.32,175.05,175.04,3.2362698]
[1752705395212,3.32,175.05,175.02,3.39]
[1752705395408,3.32,175.05,175.02,6.6262698]
[1752705395713,3.32,175.05,175.02,12.3365698]
[1752705396115,18.44992976,175.07,175.02,8.9465698]
[1752705396411,3.09,175.06,175.02,3.2362698]
[1752705397003,3.09,175.06,174.99,167.54]
[1752705397208,12.74102976,175.06,175.0,3.2362698]
[1752705397405,3.09,175.05,175.0,6.6262698]
[1752705397610,3.09,175.04,175.01,3.39]
[1752705399409,3.09,175.04,175.02,3.2362698]
[1752705400215,8.7999,175.04,175.02,3.2362698]
[1752705400413,3.09,175.03,175.02,3.2362698]
[1752705400918,3.09,175.02,175.01,6.6262698]
[1752705401817,3.09,175.02,175.01,3.2362698]
[1752705403013,3.09,175.02,174.92,730.3]
[1752705403014,3.09,175.02,174.95,3.2362698]
[1752705403215,5.712,174.98,174.95,3.2362698]
[1752705403414,3.09,174.97,174.95,3.2362698]
[1752705404317,3.09,174.99,174.93,3.39]
[1752705404508,3.09,174.99,174.93,12.3394698]
[1752705404708,3.09,174.99,174.93,8.9494698]
[1752705404920,3.09,174.97,174.94,3.39]
[1752705405117,3.09,174.97,174.95,3.39]
[1752705405320,12.79983916,175.0,174.95,3.39]
[1752705405321,3.09,174.96,174.95,3.39]
[1752705406517,3.09,174.96,174.92,3.2362698]
[1752705406724,3.09,174.96,174.9,170.7362698]
[1752705407022,3.09,174.92,174.9,174.1262698]
[1752705407318,3.09,174.92,174.91,3.39]
[1752705409417,3.09,174.96,174.91,3.39]
[1752705409617,3.09,174.96,174.95,3.2362698]
[1752705410121,3.09,174.96,174.95,6.6262698]
[1752705410523,3.09,174.96,174.95,3.2362698]
[1752705410721,12.79983916,175.0,174.94,3.2362698]
[1752705411023,5.7127,174.96,174.94,3.2362698]
[1752705411224,3.09,174.95,174.94,3.2362698]
[1752705411619,3.09,174.95,174.93,3.2362698]
[1752705412117,3.09,174.94,174.91,3.2362698]
[1752705413026,3.09,174.94,174.91,6.6262698]
[1752705413222,12.79983916,174.98,174.91,6.6262698]
[1752705413521,3.09,174.97,174.91,3.2362698]
[1752705413925,5.713,174.95,174.91,3.2362698]
[1752705414118,3.09,174.94,174.91,3.2362698]
[1752705414521,3.09,174.93,174.91,3.2362698]
[1752705415020,3.09,174.92,174.91,3.2362698]
[1752705415324,3.09,174.92,174.91,6.6262698]
[1752705416723,3.09,174.92,174.91,3.39]
[1752705416919,12.79983916,174.98,174.9,170.7362698]
[1752705417126,3.09,174.91,174.9,174.1262698]
[1752705417931,3.09,174.94,174.88,3.2362698]
[1752705418816,5.714,174.92,174.88,3.2362698]
[1752705419030,3.09,174.9,174.89,3.39]
[1752705419320,5.7135,174.93,174.89,3.39]
[1752705419521,3.2362698,174.97,174.89,3.39]
[1752705419821,3.2362698,174.97,174.89,6.6262698]
[1752705420023,3.2362698,174.97,174.89,3.2362698]
[1752705420231,3.2362698,174.97,174.9,3.39]
[1752705420620,12.79983916,174.99,174.9,3.39]
[1752705420923,3.2362698,175.01,174.94,3.39]
[1752705421515,3.09,175.0,174.94,3.39]
[1752705422524,3.09,175.0,174.95,3.2362698]
[1752705422720,3.09,175.0,174.96,3.39]
[1752705423029,5.712,174.98,174.96,3.39]
[1752705423233,3.28,174.97,174.96,3.39]
[1752705424218,5.7119,174.98,174.95,3.2362698]
[1752705424414,8.9919,174.98,174.97,3.25]
[1752705425033,3.28,174.96,174.95,6.4862698]
[1752705425422,3.28,174.96,174.93,6.4862698]
[1752705425817,3.28,174.96,174.93,3.25]
[1752705426226,3.28,174.94,174.93,3.25]
[1752705430328,3.28,174.97,174.93,3.25]
[1752705430530,12.79983916,175.02,174.96,3.2362698]
[1752705430825,5.7121,174.97,174.88,404.52]
[1752705431019,8.9921,174.97,174.96,3.2362698]
[1752705431219,8.9921,174.97,174.96,6.4862698]
[1752705432129,8.9921,174.97,174.96,3.2362698]
[1752705432723,8.9921,174.97,174.96,6.4862698]
[1752705432927,8.9921,174.97,174.96,3.25]
[1752705433128,3.28,174.97,174.96,6.4862698]
[1752705433732,8.9921,174.97,174.96,6.4862698]
[1752705435332,3.28,174.97,174.96,6.4862698]
[1752705436225,8.9921,174.97,174.88,404.52]
[1752705436524,3.28,174.99,174.94,3.2362698]
[1752705436729,3.28,174.99,174.95,3.25]
[1752705437429,5.7123,174.97,174.95,3.25]
[1752705437629,3.28,174.96,174.95,3.25]
[1752705440143,8.9924,174.96,174.95,3.25]
[1752705442837,3.28,174.92,174.88,167.5]
[1752705443040,3.28,174.91,174.9,3.2362698]
[1752705443238,3.28,174.95,174.9,3.2362698]
[1752705443438,3.28,174.94,174.92,3.2362698]
[1752705443941,3.28,174.93,174.92,3.2362698]
[1752705444847,3.28,174.93,174.92,6.4862698]
[1752705445028,3.28,174.93,174.85,3.25]
[1752705445235,3.28,174.93,174.88,3.2362698]
[1752705445439,3.28,174.93,174.87,6.4862698]
[1752705445640,3.28,174.9,174.87,6.4862698]
[1752705445839,3.28,174.9,174.87,3.2362698]
[1752705446050,5.7154,174.88,174.85,3.25]
[1752705446342,3.28,174.87,174.84,3.2362698]
[1752705446540,3.28,174.87,174.83,85.25057075]
[1752705447041,16.07983916,174.87,174.83,85.25057075]
[1752705447236,8.9963,174.85,174.83,85.25057075]
[1752705447437,3.28,174.85,174.83,85.25057075]
[1752705447642,12.79983916,174.87,174.83,85.25057075]
[1752705447643,3.28,174.86,174.83,85.25057075]
[1752705447939,3.28,174.84,174.83,85.25057075]
[1752705448142,3.28,174.86,174.84,3.25]
[1752705448342,3.28,174.85,174.84,3.25]
[1752705448939,3.28,174.88,174.83,85.25057075]
[1752705449145,3.28,174.88,174.85,3.25]
[1752705449347,3.28,174.88,174.87,3.25]
[1752705451143,12.79983916,174.92,174.87,3.25]
[1752705451347,12.79983916,174.92,174.83,85.25057075]
[1752705451348,3.28,174.91,174.9,3.2362698]
[1752705451643,3.28,174.93,174.92,3.25]
[1752705451842,12.79983916,174.95,174.9,3.25]
[1752705452145,3.28,174.91,174.9,6.4862698]
[1752705452540,3.28,174.93,174.91,3.25]
[1752705452748,3.28,174.93,174.84,167.48]
[1752705452749,3.28,174.93,174.92,6.4862698]
[1752705452947,3.28,174.95,174.93,3.14]
[1752705453749,3.28,174.95,174.94,6.3762698]
[1752705454153,3.16,174.96,174.95,3.14]
[1752705454651,3.16,174.96,174.93,3.2362698]
[1752705454851,3.16,174.95,174.93,6.3762698]
[1752705455051,3.16,174.94,174.93,6.3762698]
[1752705455352,8.8727,174.96,174.93,6.3762698]
[1752705455550,3.16,174.96,174.95,6.3762698]
[1752705455743,3.16,174.96,174.95,3.2362698]
[1752705456050,8.8724,174.96,174.95,3.2362698]
[1752705456447,3.16,174.94,174.93,6.3762698]
[1752705457341,3.16,174.95,174.94,3.14]
[1752705457641,3.16,174.97,174.95,3.14]
[1752705457845,3.16,174.97,174.96,6.3762698]
[1752705458042,3.16,174.97,174.96,3.2362698]
[1752705459252,8.8721,174.97,174.96,3.2362698]
[1752705459444,3.16,174.97,174.96,3.2362698]
[1752705460851,3.16,174.97,174.94,3.2362698]
[1752705461053,3.16,174.97,174.91,2.48]
[1752705461255,5.7127,174.96,174.94,3.2362698]
[1752705461552,3.16,174.95,174.94,3.2362698]
[1752705461749,8.8728,174.95,174.9,5.7143]
[1752705461959,3.16,174.94,174.91,3.2362698]
[1752705462443,3.16,174.92,174.91,3.2362698]
[1752705463655,8.8737,174.92,174.91,3.2362698]
[1752705464151,3.16,174.92,174.91,3.2362698]
[1752705464547,12.79983916,174.95,174.9,3.2362698]
[1752705464751,12.79983916,174.94,174.9,3.2362698]
[1752705465149,3.16,174.91,174.9,3.2362698]
[1752705465457,3.16,174.91,174.9,5.7162698]
[1752705466653,5.7136,174.93,174.9,5.7162698]
[1752705466953,3.16,174.92,174.9,5.7162698]
[1752705467152,5.7136,174.93,174.9,5.7162698]
[1752705467352,3.16,174.91,174.9,5.7162698]
[1752705467559,3.16,174.91,174.9,3.2362698]
[1752705468054,3.16,174.91,174.88,3.2362698]
[1752705468456,3.16,174.91,174.84,672.5123698]
[1752705468457,5.7147,174.89,174.84,672.5123698]
[1752705468658,3.2362698,174.93,174.84,672.5123698]
[1752705468659,3.16,174.88,174.84,178.9123698]
[1752705468857,3.16,174.88,174.84,173.1962698]
[1752705469051,3.16,174.86,174.83,87.73057075]
[1752705469248,3.16,174.86,174.83,88.48684055]
[1752705469855,8.8759,174.86,174.83,85.25057075]
[1752705470052,3.16,174.85,174.83,87.73057075]
[1752705470755,3.16,174.84,174.83,85.25057075]
[1752705470955,12.79983916,174.87,174.79,169.92]
[1752705471161,3.16,174.86,174.8,3.2362698]
[1752705471363,5.7169,174.83,174.79,167.44]
[1752705471662,3.16,174.81,174.8,3.2362698]
[1752705471955,3.16,174.8,174.79,3.2362698]
[1752705472262,3.16,174.79,174.78,5.7162698]
[1752705472454,3.16,174.82,174.79,2.48]
[1752705472652,3.16,174.81,174.79,2.48]
[1752705473362,3.16,174.8,174.79,2.48]
[1752705474553,3.16,174.8,174.77,2.48]
[1752705474861,6.3962698,174.8,174.72,87.52009366]
[1752705475053,3.16,174.79,174.72,87.52009366]
[1752705475449,3.16,174.76,174.73,2.48]
[1752705475656,3.16,174.75,174.73,2.48]
[1752705475861,3.16,174.76,174.74,5.7162698]
[1752705476558,3.16,174.81,174.74,5.7162698]
[1752705476752,5.7187,174.77,174.74,2.48]
[1752705476956,5.7187,174.77,174.73,3.2362698]
[1752705477155,3.16,174.75,174.73,3.2362698]
[1752705477364,3.16,174.75,174.73,11.4359698]
[1752705477561,3.16,174.8,174.72,81.80382386]
[1752705477862,3.16,174.8,174.73,3.2362698]
[1752705478570,3.16,174.77,174.72,81.80382386]
[1752705478857,3.16,174.74,174.68,3.2362698]
[1752705479165,3.16,174.69,174.66,3.2362698]
[1752705479357,3.16,174.74,174.69,2.48]
[1752705479555,3.16,174.73,174.71,5.7162698]
[1752705480156,3.16,174.72,174.7,5.7208]
[1752705480356,3.16,174.72,174.71,3.2362698]
[1752705480556,27.3562872,174.89,174.72,2.48]
[1752705480557,3.16,174.81,174.72,2.48]
[1752705480958,3.16,174.77,174.75,5.7162698]
[1752705481367,3.16,174.77,174.76,2.48]
[1752705481667,3.16,174.77,174.76,3.2362698]
[1752705481968,3.16,174.77,174.7,2.48]
[1752705482169,3.16,174.77,174.7,3.2362698]
[1752705483272,5.7196,174.74,174.7,8.9571698]
[1752705483464,3.11,174.78,174.7,5.7262698]
[1752705483664,3.11,174.78,174.7,3.2362698]
[1752705483970,3.11,174.78,174.72,3.2362698]
[1752705484369,5.7197,174.74,174.7,5.7262698]
[1752705484568,3.11,174.73,174.68,88.331006]
[1752705484865,5.7207,174.71,174.68,85.841006]
[1752705485068,3.11,174.7,174.68,82.6047362]
[1752705485666,8.8312,174.7,174.68,82.6047362]
[1752705485870,494.02,174.79,174.68,82.6047362]
[1752705485871,3.11,174.69,174.68,82.6047362]
[1752705486172,3.11,174.69,174.66,5.7262698]
[1752705486376,3.11,174.74,174.66,3.2362698]
[1752705486575,3.11,174.72,174.66,3.2362698]
[1752705486766,5.7215,174.69,174.66,3.2362698]
[1752705486967,3.11,174.68,174.66,3.2362698]
[1752705487170,3.11,174.72,174.64,2.49]
[1752705487371,5.7211,174.7,174.65,3.2362698]
[1752705487680,3.11,174.69,174.65,3.2362698]
[1752705487876,3.11,174.69,174.66,5.722]
[1752705488172,3.11,174.67,174.66,2.49]
[1752705488373,3.11,174.67,174.66,8.2122]
[1752705488763,3.11,174.67,174.65,5.7262698]
[1752705488960,3.11,174.67,174.66,5.7222]
[1752705489169,3.11,174.67,174.65,5.7262698]
[1752705489376,3.2362698,174.73,174.65,5.7262698]
[1752705489377,3.11,174.72,174.65,3.2362698]
[1752705489573,3.11,174.72,174.65,8.9585698]
[1752705489874,3.11,174.72,174.65,3.2362698]
[1752705490477,3.11,174.69,174.65,8.9587698]
[1752705490673,3.11,174.69,174.65,11.4487698]
[1752705490872,3.11,174.69,174.65,5.7262698]
[1752705491375,3.11,174.68,174.66,8.212]
[1752705491670,3.11,174.67,174.66,8.212]
[1752705492063,3.11,174.67,174.66,5.722]
[1752705492268,3.11,174.67,174.66,8.212]
[1752705492773,3.11,174.67,174.66,5.722]
[1752705492980,3.11,174.71,174.68,2.48]
[1752705493180,3.11,174.71,174.68,5.7162698]
[1752705493876,3.11,174.7,174.68,5.7162698]
[1752705494082,3.11,174.7,174.69,2.48]
[1752705494282,3.11,174.7,174.69,8.2013]
[1752705495082,3.11,174.76,174.69,2.48]
[1752705495283,3.11,174.73,174.7,5.7162698]
[1752705495485,3.11,174.72,174.7,5.7162698]
[1752705495678,3.11,174.72,174.71,8.2006]
[1752705495984,3.11,174.73,174.7,3.2362698]
[1752705496185,3.11,174.78,174.72,5.7162698]
[1752705496683,494.02,174.79,174.72,5.7162698]
[1752705496880,3.11,174.73,174.72,5.7162698]
[1752705498289,3.11,174.73,174.72,11.4363698]
[1752705499593,497.2562698,174.79,174.71,5.7162698]
[1752705499797,3.11,174.78,174.71,5.7162698]
[1752705500294,3.11,174.74,174.73,5.7162698]
[1752705500993,3.11,174.74,174.73,3.2362698]
[1752705501794,3.11,174.74,174.72,8.9563698]
[1752705502090,3.11,174.74,174.72,3.2362698]
[1752705502490,5.7197,174.74,174.72,3.2362698]
[1752705502792,3.11,174.73,174.72,3.2362698]
[1752705503182,3.11,174.73,174.65,404.74]
[1752705503390,3.11,174.73,174.7,3.2362698]
[1752705503896,3.11,174.73,174.7,5.7162698]
[1752705504092,3.11,174.78,174.71,5.7205]
[1752705504394,3.11,174.78,174.74,3.2362698]
[1752705504997,5.7188,174.77,174.74,3.2362698]
[1752705505195,3.11,174.76,174.74,3.2362698]
[1752705505595,3.11,174.75,174.74,3.2362698]
[1752705507406,3.11,174.75,174.74,5.7162698]
[1752705507590,11.4324,174.85,174.75,2.48]
[1752705507591,3.11,174.76,174.75,2.48]
[1752705507795,3.11,174.76,174.75,11.4355698]
[1752705508293,3.11,174.82,174.75,5.7162698]
[1752705508701,3.2362698,174.83,174.75,5.7162698]
[1752705508702,3.11,174.79,174.75,5.7162698]
[1752705509703,3.11,174.78,174.75,5.7162698]
[1752705510093,5.7187,174.77,174.72,8.2]
[1752705510297,3.11,174.76,174.73,3.2362698]
[1752705510495,3.11,174.76,174.72,5.7162698]
[1752705510694,3.11,174.76,174.72,11.4363698]
[1752705510896,3.11,174.76,174.72,3.2362698]
[1752705511093,3.11,174.76,174.73,2.48]
[1752705511298,3.11,174.76,174.66,2.48]
[1752705511502,5.7187,174.77,174.73,3.2362698]
[1752705511698,5.7187,174.77,174.73,5.7162698]
[1752705511909,3.11,174.74,174.73,11.4361698]
[1752705513406,3.11,174.74,174.73,3.2362698]
[1752705514507,3.11,174.74,174.71,3.2362698]
[1752705516606,3.11,174.73,174.71,3.2362698]
[1752705517509,3.11,174.72,174.68,3.2362698]
[1752705517706,9.54648758,174.72,174.68,3.2362698]
[1752705517913,3.11,174.7,174.66,3.2362698]
[1752705518613,3.11,174.69,174.66,3.2362698]
[1752705518798,3.11,174.69,174.64,2.48]
[1752705519108,3.11,174.69,174.65,2.48]
[1752705519109,3.11,174.67,174.65,2.48]
[1752705519303,3.11,174.67,174.66,2.48]
[1752705519905,3.11,174.67,174.66,8.2022]
[1752705520208,3.11,174.67,174.66,11.4384698]
[1752705520608,12.65648758,174.69,174.67,2.48]
[1752705520804,9.54648758,174.7,174.68,3.2362698]
[1752705521118,12.65648758,174.7,174.68,11.4376698]
[1752705521506,9.54648758,174.71,174.69,2.48]
[1752705521707,9.54648758,174.71,174.7,5.7162698]
[1752705521708,3.11,174.71,174.7,5.7162698]
[1752705521907,9.54648758,174.72,174.7,5.7162698]
[1752705522207,12.65648758,174.72,174.71,2.48]
[1752705522606,12.71287409,174.72,174.71,2.48]
[1752705522908,9.60287409,174.72,174.71,2.48]
[1752705523109,9.60287409,174.72,174.71,8.2006]
[1752705523311,12.71287409,174.73,174.72,2.48]
[1752705523713,9.60287409,174.74,174.72,3.2362698]
[1752705523917,3.11,174.74,174.73,2.48]
[1752705524211,3.11,174.74,174.73,8.1999]
[1752705524907,12.71287409,174.74,174.73,5.7162698]
[1752705525108,3.11,174.74,174.73,5.7162698]
[1752705525410,12.71287409,174.75,174.74,2.48]
[1752705525710,9.60287409,174.75,174.74,2.48]
[1752705525912,9.60287409,174.76,174.75,8.1993]
[1752705526206,12.71287409,174.77,174.75,5.7162698]
[1752705526408,12.71287409,174.77,174.76,2.48]
[1752705526607,3.11,174.77,174.76,2.48]
[1752705526805,9.60287409,174.78,174.77,8.1986]
[1752705527012,12.79983916,174.85,174.81,3.2362698]
[1752705527212,12.79983916,174.87,174.81,3.2362698]
[1752705527514,3.11,174.86,174.81,3.2362698]
[1752705528012,3.11,174.84,174.81,3.2362698]
[1752705528509,3.11,174.82,174.7,2.48]
[1752705528808,3.11,174.82,174.77,3.2362698]
[1752705529007,3.2362698,174.82,174.73,2.48]
[1752705529208,3.11,174.79,174.72,3.2362698]
[1752705529411,3.2362698,174.79,174.72,3.2362698]